fUSD/lending_fUSD_20250108
["ID","MTS","AMOUNT","RATE_DAILY","PERIOD"]
[348080280,1736297449769,-762.45,0.00010643,2]
[348080281,1736297449778,-735.98,0.00010643,2]
[348080282,1736297449789,-500.0,0.00010643,2]
[348080283,1736297449799,-500.0,0.00010643,2]
[348080284,1736297449810,-515.7,0.00010643,2]
[348080285,1736297449820,-500.0,0.00010643,2]
[348080286,1736297449830,-500.0,0.00010643,2]
[348080287,1736297449843,-500.0,0.00010643,2]
[348080288,1736297449853,-500.0,0.00010643,2]
[348080289,1736297449862,-500.0,0.00010643,2]
[348080290,1736297449872,-500.0,0.00010643,2]
[348080291,1736297449882,-1190.34,0.00010643,2]
[348080292,1736297449891,-3562.59,0.00010643,2]
[348080293,1736297449901,-500.0,0.00010643,2]
[348080294,1736297449910,-500.0,0.00010643,2]
[348080295,1736297449919,-500.0,0.00010643,2]
[348080296,1736297449928,-727.0,0.00010643,2]
[348080297,1736297449938,-776.15,0.00010643,2]
[348080298,1736297449947,-500.0,0.00010643,2]
[348080299,1736297449957,-661.94,0.00010643,2]
[348080300,1736297449967,-1900.48,0.00010643,2]
[348080301,1736297449976,-500.0,0.00010643,2]
[348080302,1736297449986,-1086.76,0.00010643,2]
[348080303,1736297449995,-500.0,0.00010643,2]
[348080304,1736297450004,-1921.06,0.00010643,2]
[348080305,1736297450013,-1272.25,0.00010643,2]
[348080306,1736297450022,-500.0,0.00010643,2]
[348080307,1736297450031,-809.4,0.00010643,2]
[348080308,1736297450040,-500.0,0.00010643,2]
[348080309,1736297450050,-500.0,0.00010643,2]
[348080310,1736297450059,-500.0,0.00010643,2]
[348080311,1736297450068,-567.29,0.00010643,2]
[348080312,1736297450078,-500.0,0.00010643,2]
[348080313,1736297450088,-500.0,0.00010643,2]
[348080314,1736297450098,-1170.25,0.00010643,2]
[348080315,1736297450107,-909.28,0.00010643,2]
[348080316,1736297450118,-611.61,0.00010643,2]
[348080317,1736297450127,-500.0,0.00010643,2]
[348080318,1736297450137,-500.0,0.00010643,2]
[348080319,1736297450146,-500.0,0.00010643,2]
[348080320,1736297450156,-500.0,0.00010643,2]
[348080321,1736297450165,-500.0,0.00010643,2]
[348080322,1736297450174,-1540.47,0.00010643,2]
[348080323,1736297450187,-558.72,0.00010644,2]
[348080324,1736297450196,-500.0,0.00010644,2]
[348080325,1736297450206,-733.85,0.00010644,2]
[348080326,1736297450216,-768.62,0.00010644,2]
[348080327,1736297450225,-1285.43,0.00010644,2]
[348080328,1736297450235,-656.14,0.00010644,2]
[348080329,1736297450244,-1840.24,0.00010644,2]
[348080330,1736297450255,-838.76,0.00010644,2]
[348080331,1736297450264,-1282.81,0.00010644,2]
[348080332,1736297450275,-649.24,0.00010644,2]
[348080333,1736297450284,-743.23,0.00010644,2]
[348080334,1736297450293,-500.0,0.00010644,2]
[348080335,1736297450303,-773.14,0.00010644,2]
[348080336,1736297450313,-500.0,0.00010644,2]
[348080337,1736297450322,-500.0,0.00010644,2]
[348080338,1736297450332,-500.0,0.00010644,2]
[348080339,1736297450341,-573.28,0.00010644,2]
[348080340,1736297450352,-1352.95,0.00010644,2]
[348080341,1736297450362,-805.2,0.00010644,2]
[348080342,1736297450372,-741.93,0.00010644,2]
[348080343,1736297450382,-715.23,0.00010644,2]
[348080344,1736297450391,-500.0,0.00010644,2]
[348080345,1736297450401,-1453.37,0.00010644,2]
[348080346,1736297450411,-1554.46,0.00010644,2]
[348080347,1736297450421,-500.0,0.00010644,2]
[348080348,1736297450431,-3500.97,0.00010644,2]
[348080349,1736297450440,-1000.0,0.00010644,2]
[348080350,1736297450450,-676.35,0.00010644,2]
[348080351,1736297450459,-534.31,0.00010644,2]
[348080352,1736297450469,-500.0,0.00010644,2]
[348080353,1736297450478,-429.6623773,0.00010644,2]
[348080354,1736297450488,-719.05,0.00010644,2]
[348080355,1736297450497,-647.76,0.00010644,2]
[348080356,1736297450507,-500.0,0.00010644,2]
[348080357,1736297450516,-1158.4,0.00010644,2]
[348080358,1736297450526,-500.0,0.00010644,2]
[348080359,1736297450535,-602.38,0.00010644,2]
[348080360,1736297450544,-863.1,0.00010644,2]
[348080361,1736297450554,-1550.27,0.00010645,2]
[348080362,1736297450564,-1288.77,0.00010645,2]
[348080363,1736297450573,-200.10213668,0.00010655,2]
[348080364,1736297450583,-1011.24881446,0.00010667,2]
[348080365,1736297450592,-200.10213668,0.00010762,2]
[348080366,1736297450603,-150.0,0.00010775,2]
[348080367,1736297450613,-150.0,0.00010775,2]
[348080368,1736297450622,-150.13475743,0.00010775,2]
[348080369,1736297450632,-150.0,0.00010775,2]
[348080370,1736297450641,-150.0,0.00010775,2]
[348080371,1736297450651,-284.42890519,0.00010775,2]
[348080372,1736297450661,-168.75496854,0.00010775,2]
[348080373,1736297450670,-150.0,0.00010775,2]
[348080374,1736297450679,-150.0,0.00010775,2]
[348080375,1736297450689,-158.70219522,0.00010775,2]
[348080376,1736297450698,-171.69550468,0.00010775,2]
[348080377,1736297450707,-150.00000001,0.00010775,2]
[348080378,1736297450717,-150.0,0.00010775,2]
[348080379,1736297450726,-500.0,0.00010779,2]
[348080380,1736297450736,-635.34,0.00010794,2]
[348080381,1736297450746,-500.0,0.00010794,2]
[348080382,1736297450756,-512.0,0.00010794,2]
[348080383,1736297450770,-500.0,0.00010794,2]
[348080384,1736297450779,-500.0,0.00010794,2]
[348080385,1736297450791,-500.0,0.00010794,2]
[348080386,1736297450801,-500.0,0.00010794,2]
[348080387,1736297450811,-500.0,0.00010794,2]
[348080388,1736297450821,-500.0,0.00010794,2]
[348080389,1736297450832,-644.52,0.00010794,2]
[348080390,1736297450842,-500.0,0.00010794,2]
[348080391,1736297450853,-500.0,0.00010794,2]
[348080392,1736297450863,-500.0,0.00010794,2]
[348080393,1736297450872,-737.46,0.00010794,2]
[348080394,1736297450882,-500.0,0.00010794,2]
[348080395,1736297450893,-500.0,0.00010794,2]
[348080396,1736297450902,-500.0,0.00010794,2]
[348080397,1736297450912,-500.0,0.00010794,2]
[348080398,1736297450927,-500.0,0.00010794,2]
[348080399,1736297450937,-639.4,0.00010794,2]
[348080400,1736297450947,-500.0,0.00010794,2]
[348080401,1736297450957,-618.81,0.00010794,2]
[348080402,1736297450967,-500.0,0.00010794,2]
[348080403,1736297450976,-500.0,0.00010794,2]
[348080404,1736297450986,-500.0,0.00010794,2]
[348080405,1736297450996,-500.0,0.00010794,2]
[348080406,1736297451007,-500.0,0.00010794,2]
[348080407,1736297451016,-500.0,0.00010794,2]
[348080408,1736297451026,-500.0,0.00010794,2]
[348080409,1736297451038,-500.0,0.00010794,2]
[348080410,1736297451049,-500.0,0.00010794,2]
[348080411,1736297451060,-500.0,0.00010794,2]
[348080412,1736297451072,-1019.84,0.00010794,2]
[348080413,1736297451082,-1019.84,0.00010794,2]
[348080414,1736297451092,-500.0,0.00010794,2]
[348080415,1736297451102,-500.0,0.00010794,2]
[348080416,1736297451111,-500.0,0.00010794,2]
[348080417,1736297451121,-500.0,0.00010794,2]
[348080418,1736297451131,-500.0,0.00010794,2]
[348080419,1736297451140,-500.0,0.00010794,2]
[348080420,1736297451150,-1567.67,0.00010794,2]
[348080421,1736297451160,-1502.35,0.00010794,2]
[348080422,1736297451169,-500.0,0.00010794,2]
[348080423,1736297451179,-500.0,0.00010794,2]
[348080424,1736297451189,-500.0,0.00010794,2]
[348080425,1736297451200,-500.0,0.00010794,2]
[348080426,1736297451210,-1113.99,0.00010794,2]
[348080427,1736297451219,-1067.57,0.00010794,2]
[348080428,1736297451229,-500.0,0.00010794,2]
[348080429,1736297451239,-500.0,0.00010794,2]
[348080430,1736297451250,-500.0,0.00010794,2]
[348080431,1736297451259,-500.0,0.00010794,2]
[348080432,1736297451269,-632.710214,0.00010794,2]
[348080433,1736297451278,-632.710214,0.00010794,2]
[348080434,1736297451288,-577.16,0.00010794,2]
[348080435,1736297451297,-500.0,0.00010794,2]
[348080436,1736297451306,-500.0,0.00010794,2]
[348080437,1736297451316,-740.74,0.00010794,2]
[348080438,1736297451326,-500.0,0.00010794,2]
[348080439,1736297451335,-500.0,0.00010794,2]
[348080440,1736297451345,-646.59042,0.00010794,2]
[348080441,1736297451355,-646.59042,0.00010794,2]
[348080442,1736297451365,-500.0,0.00010794,2]
[348080443,1736297451376,-500.0,0.00010794,2]
[348080444,1736297451384,-500.0,0.00010794,2]
[348080445,1736297451395,-500.0,0.00010794,2]
[348080446,1736297451404,-2345.71,0.00010794,2]
[348080447,1736297451414,-500.0,0.00010794,2]
[348080448,1736297451424,-500.0,0.00010794,2]
[348080449,1736297451434,-500.0,0.00010794,2]
[348080450,1736297451444,-500.0,0.00010794,2]
[348080451,1736297451454,-500.0,0.00010794,2]
[348080452,1736297451464,-500.0,0.00010794,2]
[348080453,1736297451473,-500.01,0.00010794,2]
[348080454,1736297451483,-2866.72,0.00010794,2]
[348080455,1736297451492,-500.0,0.00010794,2]
[348080456,1736297451502,-528.69,0.00010794,2]
[348080457,1736297451512,-1603.74,0.00010794,2]
[348080458,1736297451521,-500.0,0.00010794,2]
[348080459,1736297451531,-500.0,0.00010794,2]
[348080460,1736297451540,-500.0,0.00010794,2]
[348080461,1736297451551,-500.0,0.00010794,2]
[348080462,1736297451560,-500.0,0.00010794,2]
[348080463,1736297451571,-500.0,0.00010794,2]
[348080464,1736297451582,-500.0,0.00010794,2]
[348080465,1736297451592,-1917.73,0.00010794,2]
[348080466,1736297451605,-500.0,0.00010794,2]
[348080467,1736297451615,-500.0,0.00010794,2]
[348080468,1736297451626,-500.0,0.00010794,2]
[348080469,1736297451636,-500.0,0.00010794,2]
[348080470,1736297451646,-500.0,0.00010794,2]
[348080471,1736297451655,-627.16,0.00010794,2]
[348080472,1736297451666,-500.0,0.00010794,2]
[348080473,1736297451676,-1600.3,0.00010794,2]
[348080474,1736297451686,-500.0,0.00010794,2]
[348080475,1736297451696,-500.0,0.00010794,2]
[348080476,1736297451706,-500.0,0.00010794,2]
[348080477,1736297451716,-500.0,0.00010794,2]
[348080478,1736297451887,-500.0,0.00010794,2]
[348080479,1736297451897,-500.0,0.00010794,2]
[348080480,1736297451907,-500.0,0.00010794,2]
[348080481,1736297451917,-500.0,0.00010794,2]
[348080482,1736297451927,-500.0,0.00010794,2]
[348080483,1736297451936,-500.0,0.00010794,2]
[348080484,1736297451945,-500.0,0.00010794,2]
[348080485,1736297451954,-500.0,0.00010794,2]
[348080486,1736297451964,-500.0,0.00010794,2]
[348080487,1736297451974,-500.0,0.00010794,2]
[348080488,1736297451983,-500.0,0.00010794,2]
[348080489,1736297451993,-500.0,0.00010794,2]
[348080490,1736297452002,-570.96,0.00010794,2]
[348080491,1736297452012,-610.81,0.00010794,2]
[348080492,1736297452022,-535.1,0.00010794,2]
[348080493,1736297452032,-500.0,0.00010794,2]
[348080494,1736297452041,-150.0,0.00010835,2]
[348080495,1736297452051,-150.0,0.00010861,2]
[348080496,1736297452061,-200.10213668,0.00010869,2]
[348080497,1736297452070,-429.6623773,0.00010886,2]
[348080498,1736297452079,-150.0,0.00010895,2]
[348080499,1736297452089,-8300.0,0.000109,3]
[348080500,1736297452102,-500.0,0.00010916,2]
[348080501,1736297452111,-500.0,0.00010916,2]
[348080502,1736297452120,-500.0,0.00010916,2]
[348080503,1736297452130,-500.0,0.00010916,2]
[348080504,1736297452140,-500.0,0.00010916,2]
[348080505,1736297452150,-500.0,0.00010916,2]
[348080506,1736297452159,-188.01,0.00010916,2]
[348080507,1736297452168,-379.75,0.00010916,2]
[348080508,1736297452178,-500.0,0.00010916,2]
[348080509,1736297452186,-500.0,0.00010916,2]
[348080510,1736297452196,-500.0,0.00010916,2]
[348080511,1736297452206,-500.0,0.00010916,2]
[348080512,1736297452215,-500.0,0.00010916,2]
[348080513,1736297452226,-408.77,0.00010916,2]
[348080514,1736297452235,-500.0,0.00010916,2]
[348080515,1736297452245,-500.0,0.00010916,2]
[348080516,1736297452254,-500.0,0.00010916,2]
[348080517,1736297452263,-632.7045244,0.00010916,2]
[348080518,1736297452272,-500.0,0.00010916,2]
[348080519,1736297452281,-500.0,0.00010916,2]
[348080520,1736297452290,-500.0,0.00010916,2]
[348080521,1736297452299,-500.0,0.00010916,2]
[348080522,1736297452308,-500.0,0.00010916,2]
[348080523,1736297452318,-500.0,0.00010916,2]
[348080524,1736297452327,-500.0,0.00010916,2]
[348080525,1736297452337,-645.24,0.00010916,2]
[348080526,1736297452348,-500.0,0.00010916,2]
[348080527,1736297452358,-500.0,0.00010916,2]
[348080528,1736297452368,-500.0,0.00010916,2]
[348080529,1736297452377,-500.0,0.00010916,2]
[348080530,1736297452387,-500.0,0.00010916,2]
[348080531,1736297452397,-500.0,0.00010916,2]
[348080532,1736297452406,-500.0,0.00010916,2]
[348080533,1736297452416,-608.74,0.00010916,2]
[348080534,1736297452425,-500.0,0.00010916,2]
[348080535,1736297452435,-500.0,0.00010916,2]
[348080536,1736297452446,-500.0,0.00010916,2]
[348080537,1736297452455,-500.0,0.00010916,2]
[348080538,1736297452465,-500.0,0.00010916,2]
[348080539,1736297452474,-500.0,0.00010916,2]
[348080540,1736297452483,-534.45,0.00010916,2]
[348080541,1736297452493,-500.0,0.00010916,2]
[348080542,1736297452502,-500.0,0.00010916,2]
[348080543,1736297452512,-500.0,0.00010916,2]
[348080544,1736297452522,-500.0,0.00010916,2]
[348080545,1736297452531,-264.48219002,0.00010916,2]
[348080546,1736297452541,-421.71705737,0.00010916,2]
[348080547,1736297452550,-500.0,0.00010916,2]
[348080548,1736297452559,-218.43292876,0.00010916,2]
[348080549,1736297452569,-500.0,0.00010916,2]
[348080550,1736297452579,-500.0,0.00010916,2]
[348080551,1736297452588,-500.0,0.00010916,2]
[348080552,1736297452598,-500.0,0.00010916,2]
[348080553,1736297452607,-500.0,0.00010916,2]
[348080554,1736297452616,-500.0,0.00010916,2]
[348080555,1736297452626,-500.0,0.00010916,2]
[348080556,1736297452636,-500.0,0.00010916,2]
[348080557,1736297452646,-540.19,0.00010916,2]
[348080558,1736297452655,-500.0,0.00010916,2]
[348080559,1736297452664,-500.0,0.00010916,2]
[348080560,1736297452674,-500.0,0.00010916,2]
[348080561,1736297452684,-500.0,0.00010916,2]
[348080562,1736297452694,-500.0,0.00010916,2]
[348080563,1736297452703,-500.0,0.00010916,2]
[348080564,1736297452713,-500.0,0.00010916,2]
[348080565,1736297452723,-500.0,0.00010916,2]
[348080566,1736297452733,-559.25,0.00010916,2]
[348080567,1736297452743,-500.0,0.00010916,2]
[348080568,1736297452752,-500.0,0.00010916,2]
[348080569,1736297452764,-644.52,0.00010916,2]
[348080570,1736297452774,-500.0,0.00010916,2]
[348080571,1736297452783,-500.0,0.00010916,2]
[348080572,1736297452793,-500.0,0.00010916,2]
[348080573,1736297452803,-500.0,0.00010916,2]
[348080574,1736297452812,-500.0,0.00010916,2]
[348080575,1736297452822,-500.0,0.00010916,2]
[348080576,1736297452831,-500.0,0.00010916,2]
[348080577,1736297452842,-536.43,0.00010916,2]
[348080578,1736297452854,-500.0,0.00010916,2]
[348080579,1736297452863,-674.15,0.00010916,2]
[348080580,1736297452873,-500.0,0.00010916,2]
[348080581,1736297452883,-500.0,0.00010916,2]
[348080582,1736297452892,-500.0,0.00010916,2]
[348080583,1736297452901,-584.49,0.00010916,2]
[348080584,1736297452910,-500.0,0.00010916,2]
[348080585,1736297452920,-500.0,0.00010916,2]
[348080586,1736297452930,-500.0,0.00010916,2]
[348080587,1736297452939,-1002.42,0.00010916,2]
[348080588,1736297452948,-500.0,0.00010916,2]
[348080589,1736297452957,-1695.89,0.00010916,2]
[348080590,1736297452967,-500.0,0.00010916,2]
[348080591,1736297452976,-500.0,0.00010916,2]
[348080592,1736297452986,-1338.63,0.00010916,2]
[348080593,1736297452995,-500.0,0.00010916,2]
[348080594,1736297453004,-574.33,0.00010916,2]
[348080595,1736297453014,-500.0,0.00010916,2]
[348080596,1736297453023,-864.25,0.00010916,2]
[348080597,1736297453033,-555.31,0.00010916,2]
[348080598,1736297453043,-500.0,0.00010916,2]
[348080599,1736297453052,-500.0,0.00010916,2]
[348080600,1736297453061,-500.0,0.00010916,2]
[348080601,1736297453070,-1702.95,0.00010916,2]
[348080602,1736297453079,-710.05,0.00010916,2]
[348080603,1736297453088,-500.0,0.00010916,2]
[348080604,1736297453098,-609.94,0.00010917,2]
[348080605,1736297453108,-676.4,0.00010917,2]
[348080606,1736297453117,-762.45,0.00010917,2]
[348080607,1736297453126,-735.98,0.00010917,2]
[348080608,1736297453136,-500.0,0.00010917,2]
[348080609,1736297453145,-500.0,0.00010917,2]
[348080610,1736297453155,-500.0,0.00010917,2]
[348080611,1736297453164,-500.0,0.00010917,2]
[348080612,1736297453173,-500.0,0.00010917,2]
[348080613,1736297453182,-500.0,0.00010917,2]
[348080614,1736297453193,-500.0,0.00010917,2]
[348080615,1736297453202,-1190.34,0.00010917,2]
[348080616,1736297453211,-3562.59,0.00010917,2]
[348080617,1736297453221,-500.0,0.00010917,2]
[348080618,1736297453230,-500.0,0.00010917,2]
[348080619,1736297453239,-500.0,0.00010917,2]
[348080620,1736297453248,-727.0,0.00010917,2]
[348080621,1736297453258,-776.15,0.00010917,2]
[348080622,1736297453267,-500.0,0.00010917,2]
[348080623,1736297453276,-661.94,0.00010917,2]
[348080624,1736297453286,-1900.48,0.00010917,2]
[348080625,1736297453295,-500.0,0.00010917,2]
[348080626,1736297453304,-1086.76,0.00010917,2]
[348080627,1736297453314,-1921.06,0.00010917,2]
[348080628,1736297453324,-1272.25,0.00010917,2]
[348080629,1736297453338,-500.0,0.00010917,2]
[348080630,1736297453348,-809.4,0.00010917,2]
[348080631,1736297453357,-500.0,0.00010917,2]
[348080632,1736297453367,-500.0,0.00010917,2]
[348080633,1736297453376,-567.29,0.00010917,2]
[348080634,1736297453386,-500.0,0.00010917,2]
[348080635,1736297453395,-500.0,0.00010917,2]
[348080636,1736297453404,-1170.25,0.00010917,2]
[348080637,1736297453413,-909.28,0.00010917,2]
[348080638,1736297453423,-611.61,0.00010917,2]
[348080639,1736297453433,-500.0,0.00010917,2]
[348080640,1736297453443,-500.0,0.00010917,2]
[348080641,1736297453453,-500.0,0.00010917,2]
[348080642,1736297453462,-500.0,0.00010917,2]
[348080643,1736297453472,-1540.47,0.00010917,2]
[348080644,1736297453481,-558.72,0.00010918,2]
[348080645,1736297453490,-500.0,0.00010918,2]
[348080646,1736297453499,-733.85,0.00010918,2]
[348080647,1736297453509,-768.62,0.00010918,2]
[348080648,1736297453519,-1285.43,0.00010918,2]
[348080649,1736297453529,-656.14,0.00010918,2]
[348080650,1736297453538,-1840.24,0.00010918,2]
[348080651,1736297453548,-838.76,0.00010918,2]
[348080652,1736297453558,-1282.81,0.00010918,2]
[348080653,1736297453568,-649.24,0.00010918,2]
[348080654,1736297453577,-743.23,0.00010918,2]
[348080655,1736297453587,-500.0,0.00010918,2]
[348080656,1736297453596,-773.14,0.00010918,2]
[348080657,1736297453605,-500.0,0.00010918,2]
[348080658,1736297453614,-500.0,0.00010918,2]
[348080659,1736297453623,-500.0,0.00010918,2]
[348080660,1736297453632,-573.28,0.00010918,2]
[348080661,1736297453641,-1352.95,0.00010918,2]
[348080662,1736297453650,-805.2,0.00010918,2]
[348080663,1736297453659,-741.93,0.00010918,2]
[348080664,1736297453669,-715.23,0.00010918,2]
[348080665,1736297453679,-500.0,0.00010918,2]
[348080666,1736297453687,-1453.37,0.00010918,2]
[348080667,1736297453697,-1554.46,0.00010918,2]
[348080668,1736297453707,-500.0,0.00010918,2]
[348080669,1736297453716,-3500.97,0.00010918,2]
[348080670,1736297453725,-1000.0,0.00010918,2]
[348080671,1736297453735,-676.35,0.00010918,2]
[348080672,1736297453744,-500.0,0.00010918,2]
[348080673,1736297453754,-719.05,0.00010918,2]
[348080674,1736297453767,-647.76,0.00010918,2]
[348080675,1736297453777,-500.0,0.00010918,2]
[348080676,1736297453786,-1158.4,0.00010918,2]
[348080677,1736297453796,-500.0,0.00010918,2]
[348080678,1736297453807,-602.38,0.00010918,2]
[348080679,1736297453817,-863.1,0.00010918,2]
[348080680,1736297453826,-1550.27,0.00010919,2]
[348080681,1736297453836,-1288.77,0.00010919,2]
[348080682,1736297453849,-150.0,0.00010946,2]
[348080683,1736297453858,-150.0,0.00010946,2]
[348080684,1736297453868,-1015.0,0.0001095,2]
[348080685,1736297453877,-150.0,0.00010955,2]
[348080686,1736297453890,-7500.0,0.00010958,2]
[348080687,1736297453899,-7500.0,0.00010958,2]
[348080688,1736297453909,-7500.0,0.00010958,2]
[348080689,1736297453919,-7500.0,0.00010958,2]
[348080690,1736297453929,-7500.0,0.00010958,2]
[348080691,1736297453939,-7500.0,0.00010958,2]
[348080692,1736297453949,-2239.39,0.00010959,2]
[348080693,1736297453958,-150.0,0.00010959,2]
[348080694,1736297453968,-500.0,0.0001096,2]
[348080695,1736297453977,-500.0,0.00010961,2]
[348080696,1736297453987,-500.0,0.00010961,2]
[348080697,1736297453996,-500.0,0.00010961,2]
[348080698,1736297454004,-500.0,0.00010961,2]
[348080699,1736297454014,-500.0,0.00010961,2]
[348080700,1736297454023,-500.0,0.00010961,2]
[348080701,1736297454032,-500.0,0.00010961,2]
[348080702,1736297454042,-500.0,0.00010961,2]
[348080703,1736297454051,-500.0,0.00010961,2]
[348080704,1736297454060,-500.0,0.00010961,2]
[348080705,1736297454070,-500.0,0.00010961,2]
[348080706,1736297454079,-500.0,0.00010961,2]
[348080707,1736297454088,-500.0,0.00010961,2]
[348080708,1736297454098,-500.0,0.00010961,2]
[348080709,1736297454107,-500.0,0.00010961,2]
[348080710,1736297454116,-500.0,0.00010961,2]
[348080711,1736297454125,-500.0,0.00010961,2]
[348080712,1736297454134,-500.0,0.00010961,2]
[348080713,1736297454144,-500.0,0.00010961,2]
[348080714,1736297454153,-500.0,0.00010961,2]
[348080715,1736297454162,-500.0,0.00010961,2]
[348080716,1736297454172,-500.0,0.00010961,2]
[348080717,1736297454182,-500.0,0.00010961,2]
[348080718,1736297454191,-500.0,0.00010961,2]
[348080719,1736297454201,-500.0,0.00010961,2]
[348080720,1736297454211,-500.0,0.00010961,2]
[348080721,1736297454220,-500.0,0.00010961,2]
[348080722,1736297454230,-500.0,0.00010961,2]
[348080723,1736297454239,-500.0,0.00010961,2]
[348080724,1736297454249,-500.0,0.00010961,2]
[348080725,1736297454259,-500.0,0.00010961,2]
[348080726,1736297454269,-500.0,0.00010961,2]
[348080727,1736297454278,-500.0,0.00010961,2]
[348080728,1736297454287,-500.0,0.00010961,2]
[348080729,1736297454297,-500.0,0.00010961,2]
[348080730,1736297454307,-500.0,0.00010961,2]
[348080731,1736297454316,-500.0,0.00010961,2]
[348080732,1736297454325,-500.0,0.00010961,2]
[348080733,1736297454335,-500.0,0.00010961,2]
[348080734,1736297454344,-500.0,0.00010961,2]
[348080735,1736297454356,-500.0,0.00010961,2]
[348080736,1736297454365,-500.0,0.00010961,2]
[348080737,1736297454374,-500.0,0.00010961,2]
[348080738,1736297454384,-500.0,0.00010961,2]
[348080739,1736297454393,-500.0,0.00010961,2]
[348080740,1736297454403,-500.0,0.00010961,2]
[348080741,1736297454412,-500.0,0.00010961,2]
[348080742,1736297454422,-500.0,0.00010961,2]
[348080743,1736297454431,-500.0,0.00010961,2]
[348080744,1736297454442,-500.0,0.00010961,2]
[348080745,1736297454451,-500.0,0.00010961,2]
[348080746,1736297454460,-500.0,0.00010961,2]
[348080747,1736297454470,-394.84,0.00010961,2]
[348080748,1736297454479,-500.0,0.00010961,2]
[348080749,1736297454488,-500.0,0.00010961,2]
[348080750,1736297454497,-500.0,0.00010961,2]
[348080751,1736297454506,-500.0,0.00010961,2]
[348080752,1736297454516,-500.0,0.00010961,2]
[348080753,1736297454525,-500.0,0.00010961,2]
[348080754,1736297454534,-500.0,0.00010961,2]
[348080755,1736297454543,-500.0,0.00010961,2]
[348080756,1736297454553,-500.0,0.00010961,2]
[348080757,1736297454562,-595.25,0.00010961,2]
[348080758,1736297454571,-819.6811715,0.00010966,2]
[348080759,1736297454581,-200.10213668,0.00010976,2]
[348080760,1736297454590,-400.0,0.00010986,2]
[348080761,1736297454601,-2577.62519206,0.00011,2]
[348080762,1736297454611,-132273.00315627,0.00011,2]
[348080763,1736297454620,-3201.66877177,0.00011,2]
[348080764,1736297454630,-550.0,0.00011,2]
[348080765,1736297454640,-290.658471,0.00011,2]
[348080766,1736297454649,-150.0,0.00011015,2]
[348080767,1736297454659,-150.0,0.00011032,2]
[348080768,1736297454668,-1011.24881446,0.0001105,2]
[348080769,1736297454677,-500.0,0.00011053,2]
[348080770,1736297454686,-635.34,0.00011068,2]
[348080771,1736297454696,-500.0,0.00011068,2]
[348080772,1736297454705,-512.0,0.00011068,2]
[348080773,1736297454715,-514.83322829,0.00011068,2]
[348080774,1736297454725,-500.0,0.00011068,2]
[348080775,1736297454735,-500.0,0.00011068,2]
[348080776,1736297454744,-500.0,0.00011068,2]
[348080777,1736297454754,-500.0,0.00011068,2]
[348080778,1736297454767,-500.0,0.00011068,2]
[348080779,1736297454776,-644.52,0.00011068,2]